bitfinex/quotes_SOLUSD_20260103
["timestamp","ask_amount","ask_price","bid_price","bid_amount"]
[1767476352893,9.32518607,132.68,132.65,0.65463169]
[1767476353190,9.32518607,132.68,132.65,0.53463169]
[1767476355021,1.93992757,132.67,132.62,7.54014729]
[1767476355313,1.93992757,132.67,132.63,0.65463169]
[1767476356615,1.7880736,132.67,132.63,0.65463169]
[1767476357424,1.8870736,132.67,132.63,0.65463169]
[1767476358708,0.32827197,132.66,132.63,0.65463169]
[1767476359702,2.11866145,132.67,132.63,0.65463169]
[1767476361014,9.65623446,132.67,132.63,0.65463169]
[1767476362039,7.86816086,132.67,132.64,0.65463169]
[1767476362207,7.53757301,132.67,132.64,0.65463169]
[1767476365036,9.32564661,132.67,132.64,0.65463169]
[1767476366725,9.32564661,132.67,132.64,0.59463169]
[1767476369419,9.48404661,132.67,132.64,0.59463169]
[1767476369826,0.32886597,132.66,132.63,0.65463169]
[1767476371448,9.71623446,132.67,132.63,0.65463169]
[1767476376434,9.71623446,132.67,132.63,0.59463169]
[1767476376621,9.71623446,132.67,132.62,7.54014729]
[1767476376622,2.17633957,132.65,132.61,13.76]
[1767476378442,9.71503357,132.65,132.61,14.46607766]
[1767476379320,1.94877226,132.64,132.61,14.46607766]
[1767476379517,9.3267676,132.65,132.61,13.76]
[1767476379943,9.3267676,132.65,132.61,13.30941215]
[1767476380239,9.3267676,132.65,132.62,0.70607766]
[1767476380444,1.7880736,132.64,132.62,0.70607766]
[1767476381018,1.7880736,132.65,132.62,0.70607766]
[1767476382726,9.32716606,132.65,132.62,0.70607766]
[1767476385344,26.37727032,132.69,132.62,0.70607766]
[1767476385546,1.7880736,132.65,132.62,0.70607766]
[1767476386847,26.37727032,132.69,132.62,0.70607766]
[1767476387023,1.7880736,132.66,132.62,0.70607766]
[1767476387543,9.32661357,132.66,132.62,0.70607766]
[1767476389144,1.7880736,132.65,132.62,0.70607766]
[1767476391547,9.3267354,132.65,132.62,0.70607766]
[1767476394050,9.46985179,132.65,132.59,15.5480736]
[1767476394948,28.31644055,132.65,132.59,15.5480736]
[1767476396054,28.31644055,132.65,132.6,0.70607766]
[1767476396551,29.32257036,132.65,132.6,0.70607766]
[1767476396852,29.32257036,132.65,132.61,0.70607766]
[1767476400454,7.5386618,132.65,132.61,0.70607766]
[1767476400652,7.5386618,132.65,132.62,0.71825247]
[1767476403158,10.99445002,132.68,132.64,0.71825247]
[1767476403747,7.53715072,132.68,132.64,0.71825247]
[1767476404349,10.99385573,132.69,132.65,0.71825247]
[1767476404559,10.99385573,132.69,132.65,0.65825247]
[1767476407058,2.79420341,132.69,132.65,7.53860562]
[1767476407248,7.53589543,132.7,132.66,0.71825247]
[1767476408248,7.73684738,132.7,132.67,0.71825247]
[1767476408566,7.73684738,132.7,132.66,7.53804405]
[1767476409643,7.73684738,132.7,132.66,10.33224746]
[1767476409848,7.73684738,132.7,132.66,2.79420341]
[1767476410254,7.73684738,132.7,132.66,2.76601932]
[1767476410455,7.73684738,132.7,132.67,0.65825247]
[1767476410655,7.73684738,132.7,132.66,2.76601932]
[1767476412763,7.73684738,132.7,132.66,3.46343672]
[1767476413969,0.66309589,132.69,132.66,0.6974174]
[1767476415166,0.66309589,132.69,132.66,2.79420341]
[1767476415465,8.19899132,132.7,132.67,0.6974174]
[1767476415672,0.66309589,132.69,132.66,2.79420341]
[1767476418153,10.99265203,132.71,132.66,10.33226424]
[1767476418354,8.19844862,132.71,132.66,10.33226424]
[1767476418572,8.19844862,132.71,132.66,24.09226424]
[1767476420655,8.19844862,132.71,132.67,2.79420341]
[1767476421071,0.66309589,132.7,132.67,2.79420341]
[1767476422855,7.53535273,132.71,132.67,2.79420341]
[1767476423058,0.66309589,132.72,132.68,2.79420341]
[1767476423469,0.66309589,132.72,132.68,2.73420341]
[1767476423773,8.19775594,132.72,132.68,2.70572741]
[1767476433882,0.67701543,132.71,132.67,7.53716756]
[1767476434076,0.67701543,132.68,132.63,18.84899729]
[1767476434280,0.67701543,132.68,132.63,21.6432007]
[1767476434664,0.67701543,132.68,132.64,2.79420341]
[1767476435171,0.67701543,132.68,132.63,21.6432007]
[1767476435673,0.67701543,132.66,132.62,24.07441042]
[1767476439067,0.67701543,132.66,132.62,24.09441042]
[1767476439468,0.67701543,132.66,132.62,10.33441042]
[1767476439669,0.67701543,132.66,132.62,24.09441042]
[1767476443390,0.67701543,132.66,132.62,21.30020701]
[1767476443596,0.67701543,132.66,132.62,24.09441042]
[1767476444790,0.67701543,132.65,132.62,2.79420341]
[1767476444989,0.67701543,132.65,132.61,24.09495844]
[1767476445193,0.67701543,132.63,132.61,13.76]
[1767476445899,0.67701543,132.63,132.59,10.3361295]
[1767476446078,0.67701543,132.63,132.59,24.0961295]
[1767476447677,0.67701543,132.63,132.59,13.76]
[1767476447877,0.67701543,132.63,132.59,16.55420341]
[1767476448279,8.21686211,132.63,132.59,2.79420341]
[1767476448489,8.21686211,132.63,132.59,16.55420341]
[1767476449680,8.21686211,132.63,132.59,2.79420341]
[1767476449872,8.21686211,132.63,132.59,16.55420341]
[1767476450277,0.67701543,132.63,132.59,24.09617866]
[1767476455001,0.67701543,132.63,132.6,2.79420341]
[1767476457002,0.67701543,132.63,132.59,24.09617866]
[1767476458504,0.67701543,132.63,132.59,23.09020101]
[1767476460203,0.67701543,132.63,132.59,21.30197525]
[1767476460406,0.67701543,132.63,132.59,23.09020101]
[1767476460593,0.67701543,132.63,132.59,21.30197525]
[1767476460800,8.21695933,132.63,132.59,15.54822576]
[1767476461001,0.69676418,132.62,132.59,15.54822576]
[1767476461184,0.69676418,132.62,132.59,13.76]
[1767476461800,0.69676418,132.62,132.59,15.54822576]
[1767476462202,0.69676418,132.62,132.59,23.09026598]
[1767476462407,18.84739949,132.65,132.59,23.09026598]
[1767476462599,42.67030303,151.29,132.62,1.78822576]
[1767476462600,8.23502825,132.66,132.62,1.78822576]
[1767476462800,8.23502825,132.66,132.62,15.54822576]
[1767476462992,0.69676418,132.66,132.63,1.78822576]
[1767476463300,0.69676418,132.66,132.62,13.76]
[1767476463301,8.23440791,132.67,132.62,13.76]
[1767476463508,0.69676418,132.66,132.63,1.78822576]
[1767476463910,0.69676418,132.66,132.62,15.54822576]
[1767476464493,0.69676418,132.66,132.63,1.78822576]
[1767476465008,0.69676418,132.66,132.62,23.08843916]
[1767476465510,0.69676418,132.66,132.62,21.3002134]
[1767476465710,0.69676418,132.66,132.63,1.78822576]
[1767476465912,0.69676418,132.66,132.62,23.08843916]
[1767476466387,0.69676418,132.66,132.63,1.78822576]
[1767476466897,0.69676418,132.66,132.62,23.08843916]
[1767476467090,0.69676418,132.66,132.62,9.32843916]
[1767476467292,0.69676418,132.65,132.62,13.76]
[1767476469325,0.69676418,132.64,132.6,7.54147812]
[1767476469614,0.69676418,132.64,132.6,21.30147812]
[1767476470211,0.69676418,132.64,132.59,71.73011728]
[1767476470386,0.69676418,132.64,132.59,23.09011728]
[1767476471289,0.69676418,132.63,132.59,23.09011728]
[1767476472187,0.69676418,132.63,132.59,21.30189152]
[1767476473392,0.69676418,132.63,132.59,23.09011728]
[1767476474296,0.69676418,132.64,132.6,1.78822576]
[1767476474715,0.69676418,132.64,132.6,15.54822576]
[1767476475015,0.69676418,132.64,132.6,1.78822576]
[1767476475311,0.69676418,132.64,132.6,15.54822576]
[1767476475491,0.69676418,132.64,132.6,23.08964993]
[1767476478610,0.69676418,132.65,132.61,1.78822576]
[1767476480315,0.69676418,132.65,132.6,23.08964993]
[1767476483323,0.69676418,132.65,132.6,41.94334525]
[1767476492928,0.72303184,132.64,132.6,23.08964993]
[1767476493130,0.72303184,132.63,132.6,13.76]
[1767476495424,0.72303184,132.63,132.59,21.30185689]
[1767476495623,0.72303184,132.63,132.59,23.09008265]
[1767476501341,0.72303184,132.62,132.59,21.30185689]
[1767476505746,0.72303184,132.63,132.6,1.78822576]
[1767476507040,0.72303184,132.65,132.61,1.78822576]
[1767476507243,0.72303184,132.66,132.62,13.76]
[1767476507445,0.72303184,132.66,132.62,15.54822576]
[1767476508550,0.72303184,132.65,132.62,15.54822576]
[1767476508951,0.72303184,132.65,132.62,13.76]
[1767476512531,8.26134232,132.66,132.62,15.54822576]
[1767476512852,8.26134232,132.66,132.62,13.76]
[1767476513161,0.72303184,132.7,132.63,1.78822576]
[1767476513375,0.72303184,132.68,132.63,1.78822576]
[1767476513646,0.72303184,132.68,132.64,13.76]
[1767476514071,0.72303184,132.67,132.64,13.76]
[1767476514364,0.72303184,132.67,132.64,15.54822576]
[1767476514851,0.72303184,132.67,132.64,13.76]
[1767476515437,0.72303184,132.67,132.64,15.54822576]
[1767476515926,0.72303184,132.67,132.64,13.76]
[1767476516559,0.72303184,132.67,132.64,21.29880853]
[1767476516756,0.72303184,132.67,132.64,23.08703429]
[1767476516951,0.72303184,132.67,132.64,21.29880853]
[1767476517257,0.72303184,132.67,132.64,23.08703429]
[1767476518061,0.72303184,132.67,132.64,21.29880853]
[1767476518360,0.72303184,132.67,132.64,23.08703429]
[1767476518560,0.72303184,132.67,132.64,24.09078584]
[1767476518763,0.72303184,132.69,132.65,2.79197731]
[1767476518948,0.72303184,132.69,132.64,24.09078584]
[1767476520357,0.72303184,132.69,132.65,10.33025316]
[1767476520564,0.72303184,132.69,132.65,7.53827585]
[1767476521841,0.7107596,132.68,132.65,7.53827585]
[1767476522334,0.7107596,132.68,132.65,10.33025316]
[1767476522754,0.7107596,132.68,132.6,34.74531181]
[1767476522966,3.50273691,132.68,132.63,2.79197731]
[1767476523145,3.50273691,132.68,132.64,13.76]
[1767476523359,0.7107596,132.68,132.64,16.55197731]
[1767476523855,0.7107596,132.67,132.64,13.76]
[1767476524163,0.7107596,132.67,132.64,21.29905016]
[1767476524463,0.7107596,132.67,132.64,24.09102747]
[1767476524669,0.7107596,132.67,132.64,21.29905016]
[1767476525457,0.7107596,132.67,132.64,24.09102747]
[1767476525869,0.7107596,132.67,132.64,21.29905016]
[1767476526663,0.7107596,132.67,132.64,24.09102747]
[1767476526863,0.7107596,132.67,132.64,21.29905016]
[1767476527366,0.7107596,132.67,132.64,24.09102747]
[1767476527866,0.7107596,132.67,132.64,21.29905016]
[1767476528366,0.7107596,132.67,132.64,24.09102747]
[1767476528866,0.7107596,132.67,132.64,21.29905016]
[1767476529566,0.7107596,132.67,132.64,24.09102747]
[1767476529763,0.7107596,132.67,132.64,21.29905016]
[1767476530064,0.7107596,132.67,132.64,24.09102747]
[1767476534347,0.7107596,132.67,132.65,2.79197731]
[1767476534847,0.7107596,132.67,132.64,24.09102747]
[1767476535367,0.7107596,132.67,132.65,2.79197731]
[1767476535867,0.7107596,132.67,132.64,24.09102747]
[1767476536365,0.7107596,132.67,132.64,21.29905016]
[1767476536667,0.7107596,132.67,132.65,2.79197731]
[1767476536865,0.7107596,132.67,132.64,24.09102747]
[1767476537369,0.7107596,132.67,132.65,2.79197731]
[1767476537663,0.7107596,132.67,132.65,2.06697731]
[1767476537857,0.7107596,132.67,132.64,24.09102747]
[1767476538368,0.7107596,132.67,132.65,2.79197731]
[1767476538764,0.7107596,132.67,132.64,7.53905016]
[1767476538962,0.7107596,132.67,132.65,13.035]
[1767476539267,0.7107596,132.67,132.65,12.1957596]
[1767476541462,0.7107596,132.67,132.65,12.1357596]
[1767476543168,8.14780199,132.68,132.65,12.8178562]
[1767476546262,8.14780199,132.68,132.65,12.7578562]
[1767476546781,0.099,132.67,132.65,12.0757596]
[1767476547085,0.099,132.67,132.65,11.465]
[1767476547385,7.53636295,132.69,132.65,12.1470966]
[1767476547885,10.32834026,132.69,132.65,12.1470966]
[1767476548389,7.53636295,132.69,132.65,12.1470966]
[1767476548869,10.32834026,132.69,132.65,12.1470966]
[1767476549379,7.53636295,132.69,132.65,12.1470966]
[1767476549957,10.32834026,132.69,132.65,12.1470966]
[1767476550185,2.79197731,132.68,132.65,11.465]
[1767476550384,2.79197731,132.68,132.65,11.405]
[1767476550681,10.32834026,132.69,132.65,11.405]
[1767476550988,2.79197731,132.68,132.65,11.405]
[1767476551457,2.79197731,132.69,132.65,11.405]
[1767476551648,2.79197731,132.69,132.64,0.67760831]
[1767476551851,2.79197731,132.68,132.64,0.67760831]
[1767476552475,2.79197731,132.69,132.64,0.67760831]
[1767476552881,2.79197731,132.68,132.64,0.67760831]
[1767476553484,2.79197731,132.69,132.64,0.67760831]
[1767476553984,2.79197731,132.68,132.64,0.67760831]
[1767476554382,2.79197731,132.69,132.64,0.67760831]
[1767476554882,18.84011743,132.7,132.64,0.67760831]
[1767476554883,2.79197731,132.68,132.64,0.67760831]
[1767476555388,2.79197731,132.69,132.64,0.67760831]
[1767476555884,2.79197731,132.68,132.64,0.67760831]
[1767476556386,2.79197731,132.69,132.64,0.67760831]
[1767476556888,2.79197731,132.68,132.64,0.67760831]
[1767476557887,2.79197731,132.67,132.62,24.09214893]
[1767476558263,10.32915018,132.68,132.62,24.09214893]
[1767476559184,10.32915018,132.68,132.63,0.66261396]
[1767476559884,2.79197731,132.67,132.63,0.66261396]
[1767476561093,10.32984667,132.67,132.63,0.66261396]
[1767476566796,2.79197731,132.68,132.63,0.66261396]
[1767476568196,2.79197731,132.68,132.64,0.66261396]
[1767476568404,26.37329514,132.71,132.64,3.45459127]
[1767476568600,40.13329514,132.71,132.65,0.66261396]
[1767476568800,2.79197731,132.69,132.65,0.66261396]
[1767476569398,2.79197731,132.7,132.65,0.66261396]
[1767476569998,2.79197731,132.69,132.65,0.66261396]
[1767476570399,7.53636295,132.69,132.65,0.66261396]
[1767476571002,10.32834026,132.69,132.65,0.66261396]
[1767476571310,7.53636295,132.69,132.66,0.66261396]
[1767476571710,7.53636295,132.69,132.66,0.60261396]
[1767476571914,10.32834026,132.69,132.66,0.60261396]
[1767476572422,10.38777233,132.7,132.66,0.60261396]
[1767476572919,2.79197731,132.69,132.66,0.60261396]
[1767476573212,10.32777233,132.7,132.66,0.60261396]
[1767476573420,7.53579502,132.7,132.66,0.60261396]
[1767476573910,10.38777233,132.7,132.66,0.60261396]
[1767476577416,2.85197731,132.7,132.66,0.60261396]
[1767476577916,2.79197731,132.69,132.66,0.60261396]
[1767476578313,2.85197731,132.7,132.66,0.60261396]
[1767476578519,7.53652888,132.69,132.66,0.60261396]
[1767476579003,9.32337206,132.69,132.66,0.60261396]
[1767476579315,7.53652888,132.69,132.66,0.60261396]
[1767476579994,9.32337206,132.69,132.66,0.60261396]
[1767476580316,7.53652888,132.69,132.66,0.60261396]
[1767476581640,0.06,132.7,132.66,0.60261396]
[1767476581832,1.84684318,132.7,132.66,0.60261396]
[1767476582921,7.53636295,132.69,132.66,0.60261396]
[1767476586035,9.38274071,132.7,132.66,0.60261396]
[1767476586324,7.59589753,132.7,132.66,0.60261396]
[1767476586930,9.38274071,132.7,132.66,0.60261396]
[1767476587326,7.59589753,132.7,132.66,0.60261396]
[1767476587910,1.84684318,132.7,132.66,0.60261396]
[1767476588325,0.06,132.7,132.66,0.60261396]
[1767476588927,1.84684318,132.7,132.66,0.60261396]
[1767476589223,1.78684318,132.71,132.67,0.70203938]
[1767476589426,9.38150261,132.72,132.68,0.70203938]
[1767476589830,1.84684318,132.71,132.68,0.70203938]
[1767476590010,7.53579502,132.7,132.68,0.70203938]
[1767476590819,0.06,132.73,132.68,0.70203938]
[1767476591018,7.53409176,132.73,132.7,0.70203938]
[1767476594332,7.59355836,132.74,132.71,0.70203938]
[1767476594916,9.38040154,132.74,132.71,0.70203938]
[1767476595310,0.06,132.74,132.71,0.70203938]
[1767476595915,1.84684318,132.74,132.71,0.70203938]
[1767476596417,0.06,132.74,132.71,0.70203938]
[1767476596818,9.38048332,132.74,132.71,0.70203938]
[1767476597516,7.59364014,132.74,132.71,0.70203938]
[1767476597838,9.38048332,132.74,132.71,0.70203938]
[1767476598419,7.59364014,132.74,132.71,0.64203938]
[1767476598834,1.84684318,132.74,132.71,0.64203938]
[1767476599451,0.06,132.74,132.71,0.64203938]
[1767476599817,9.38057589,132.74,132.71,0.64203938]
[1767476600338,7.59373271,132.74,132.71,0.64203938]
[1767476600841,9.38057589,132.74,132.71,0.64203938]
[1767476601430,0.06,132.74,132.71,0.64203938]
[1767476601738,0.06,132.74,132.7,9.32236365]
[1767476601938,0.12,132.73,132.7,7.53552047]
[1767476602137,0.12,132.73,132.7,8.23755985]
[1767476602332,9.41879986,132.75,132.71,0.70203938]
[1767476602644,0.099,132.75,132.71,0.70203938]
[1767476602847,1.78684318,132.74,132.71,0.70203938]
[1767476603020,1.88584318,132.75,132.71,0.70203938]
[1767476603345,0.099,132.75,132.71,0.70203938]
[1767476603842,1.88584318,132.75,132.71,0.70203938]
[1767476604346,0.099,132.75,132.71,0.70203938]
[1767476604832,1.78684318,132.74,132.71,0.70203938]
[1767476605234,9.32038632,132.74,132.71,0.70203938]
[1767476605438,7.53354314,132.74,132.71,0.70203938]
[1767476605940,9.32038632,132.74,132.71,0.70203938]
[1767476606343,7.63212762,132.75,132.71,0.70203938]
[1767476606526,7.63212762,132.75,132.72,0.70203938]
[1767476606930,9.4189708,132.75,132.72,0.70203938]
[1767476607431,0.099,132.75,132.72,0.70203938]
[1767476607651,0.12,132.76,132.72,0.70203938]
[1767476607830,0.12,132.76,132.73,0.70203938]
[1767476608342,9.43866512,132.77,132.73,0.70203938]
[1767476608848,9.31928559,132.76,132.73,0.70203938]
[1767476609046,7.53244241,132.76,132.73,0.70203938]
[1767476609550,9.31928559,132.76,132.73,0.70203938]
[1767476609735,7.53244241,132.76,132.73,0.70203938]
[1767476609938,1.78684318,132.75,132.73,0.64203938]
[1767476610247,0.15801984,132.74,132.69,62.4]
[1767476610544,0.15801984,132.74,132.7,13.74]
[1767476610751,9.49985913,132.75,132.7,13.74]
[1767476611056,1.78684318,132.74,132.7,13.74]
[1767476611363,9.49985913,132.75,132.7,15.52684318]
[1767476611936,1.78684318,132.74,132.71,0.68614251]
[1767476612439,9.49985913,132.75,132.71,0.68614251]
[1767476612871,1.78684318,132.74,132.71,0.68614251]
[1767476613349,9.49985913,132.75,132.71,0.68614251]
[1767476613551,0.099,132.74,132.71,0.68614251]
[1767476613742,0.099,132.74,132.7,15.52684318]
[1767476613939,9.49985913,132.75,132.71,0.68614251]
[1767476614146,1.88584318,132.74,132.71,0.68614251]
[1767476614456,1.88584318,132.74,132.7,14.42614251]
[1767476614650,0.17919,132.73,132.7,14.42614251]
[1767476614856,0.0998019,132.72,132.7,13.74]
[1767476615354,9.50065698,132.74,132.71,0.68614251]
[1767476616354,7.7138138,132.74,132.71,0.68614251]
[1767476616858,9.50065698,132.74,132.71,0.68614251]
[1767476617454,7.7138138,132.74,132.71,0.68614251]
[1767476617857,9.50065698,132.74,132.71,0.68614251]
[1767476618464,7.7138138,132.74,132.71,0.68614251]
[1767476618862,9.50065698,132.74,132.71,0.68614251]
[1767476619363,7.7138138,132.74,132.71,0.68614251]
[1767476619663,9.50065698,132.74,132.7,0.68614251]
[1767476619839,1.88584318,132.73,132.69,8.22228969]
[1767476620159,0.099,132.73,132.69,10.00913287]
[1767476620334,1.88584318,132.73,132.69,8.22228969]
[1767476621062,1.88584318,132.73,132.7,0.68614251]
[1767476621450,7.63322201,132.73,132.7,0.68614251]
[1767476621863,9.42006519,132.73,132.7,0.68614251]
[1767476622365,0.099,132.73,132.7,0.68614251]
[1767476622839,1.88584318,132.73,132.7,0.68614251]
[1767476623452,7.63309176,132.73,132.7,0.68614251]
[1767476623958,9.41993494,132.73,132.7,0.68614251]
[1767476624366,7.63309176,132.73,132.7,0.68614251]
[1767476624861,1.88584318,132.73,132.7,0.68614251]
[1767476625243,1.78684318,132.73,132.7,0.68614251]
[1767476625438,1.96684318,132.74,132.7,0.68614251]
[1767476625862,0.17919,132.72,132.69,7.53614718]
[1767476626443,0.17919,132.72,132.69,9.32299036]
[1767476626644,0.17919,132.72,132.7,1.78684318]
[1767476626961,0.17919,132.72,132.69,10.00913287]
[1767476627477,0.17919,132.72,132.7,1.78684318]
[1767476627647,0.17919,132.72,132.69,10.00913287]
[1767476627847,0.17919,132.72,132.69,8.22228969]
[1767476628364,0.17919,132.72,132.7,1.78684318]
[1767476628866,0.17919,132.72,132.69,8.22228969]
[1767476629365,0.17919,132.72,132.69,10.00913287]
[1767476629767,0.17919,132.72,132.69,8.22228969]
[1767476630452,0.17919,132.72,132.69,10.00913287]
[1767476630862,0.17919,132.72,132.69,8.22228969]
[1767476631167,7.5341142,132.73,132.7,0.68614251]
[1767476632969,9.32095738,132.73,132.7,0.68614251]
[1767476633365,0.099,132.72,132.69,9.32299036]
[1767476633969,0.099,132.72,132.69,7.53614718]
[1767476634266,1.88584318,132.72,132.68,7.5367338]
[1767476634452,0.17919,132.71,132.67,15.52684318]
[1767476634967,0.17919,132.71,132.67,16.21298569]
[1767476635369,0.17919,132.71,132.68,1.78684318]
[1767476635953,0.17919,132.71,132.67,23.75028674]
[1767476636364,0.17919,132.71,132.68,1.78684318]
[1767476636972,0.17919,132.71,132.67,23.75028674]
[1767476637273,9.32181283,132.72,132.68,0.68614251]
[1767476637573,7.53496965,132.72,132.69,0.68614251]
[1767476637874,9.32181283,132.72,132.69,0.68614251]
[1767476638370,7.53496965,132.72,132.69,0.68614251]
[1767476638968,10.32570093,132.72,132.69,0.68614251]
[1767476639357,7.53496965,132.72,132.69,0.68614251]
[1767476639855,10.32570093,132.72,132.69,0.68614251]
[1767476640470,7.53496965,132.72,132.69,0.68614251]
[1767476640672,10.50489093,132.72,132.68,0.66677031]
[1767476640849,0.0998019,132.71,132.68,0.66677031]
[1767476641050,10.32570093,132.72,132.68,0.66677031]
[1767476641249,10.50489093,132.72,132.68,0.66677031]
[1767476641472,7.71415965,132.72,132.68,0.66677031]
[1767476641874,10.50489093,132.72,132.68,0.66677031]
[1767476642374,7.71415965,132.72,132.68,3.45750159]
[1767476642873,10.50489093,132.72,132.68,0.66677031]
[1767476643371,0.0998019,132.71,132.68,0.66677031]
[1767476643872,2.89053318,132.71,132.68,0.66677031]
[1767476644381,0.0998019,132.71,132.68,0.66677031]
[1767476644984,10.50559082,132.72,132.68,0.66677031]
[1767476646970,2.79073128,132.71,132.68,0.66677031]
[1767476647358,10.50559082,132.72,132.68,0.66677031]
[1767476648171,7.53485954,132.72,132.68,0.66677031]
[1767476648375,10.32559082,132.72,132.68,0.66677031]
[1767476649386,7.53485954,132.72,132.68,0.66677031]
[1767476649881,10.32559082,132.72,132.69,0.66677031]
[1767476650377,7.53485954,132.72,132.69,0.66677031]
[1767476650872,10.32559082,132.72,132.69,0.66677031]
[1767476651377,7.53485954,132.72,132.69,0.66677031]
[1767476651978,10.32559082,132.72,132.69,0.66677031]
[1767476652377,7.53485954,132.72,132.69,0.66677031]
[1767476652880,10.32559082,132.72,132.69,0.66677031]
[1767476653380,7.53485954,132.72,132.69,0.66677031]
[1767476653881,10.32559082,132.72,132.69,0.66677031]
[1767476654378,7.53485954,132.72,132.69,0.66677031]
[1767476654980,10.32559082,132.72,132.69,0.66677031]
[1767476655275,10.32559082,132.72,132.69,0.60677031]
[1767476655581,7.53485954,132.72,132.69,0.60677031]
[1767476655882,10.32559082,132.72,132.69,0.60677031]
[1767476656379,7.53485954,132.72,132.69,0.60677031]
[1767476656882,10.32559082,132.72,132.69,0.60677031]
[1767476657381,7.53485954,132.72,132.69,0.60677031]
[1767476657980,10.32559082,132.72,132.69,0.60677031]
[1767476658366,7.53485954,132.72,132.69,0.60677031]
[1767476658976,2.97051528,132.71,132.68,0.66677031]
[1767476659879,2.79073128,132.7,132.67,0.66677031]
[1767476660388,7.53595471,132.7,132.67,0.66677031]
[1767476660890,10.32668599,132.7,132.67,0.66677031]
[1767476661391,7.53595471,132.7,132.67,0.66677031]
[1767476661892,2.97030357,132.69,132.66,0.66677031]
[1767476662090,2.97009608,132.67,132.64,7.53897073]
[1767476662272,0.15902884,132.66,132.64,7.53897073]
[1767476662476,0.15902884,132.66,132.63,10.33042553]
[1767476663775,10.56793,132.68,132.64,0.66677031]
[1767476663978,2.79073128,132.67,132.64,0.66677031]
[1767476665895,10.56793,132.68,132.64,0.66677031]
[1767476666888,2.79073128,132.67,132.64,0.66677031]
[1767476667384,10.56793,132.68,132.64,0.66677031]
[1767476672898,2.79073128,132.67,132.64,0.66677031]
[1767476673599,7.53752558,132.67,132.64,0.66677031]
[1767476674002,10.32825686,132.67,132.64,0.66677031]
[1767476674399,7.53752558,132.67,132.64,0.66677031]
[1767476674898,10.32825686,132.67,132.64,0.66677031]
[1767476675507,7.53752558,132.67,132.64,0.66677031]
[1767476676185,10.42725686,132.67,132.64,0.66677031]
[1767476676395,2.79073128,132.66,132.64,0.66677031]
[1767476677400,7.53830079,132.66,132.64,0.66677031]
[1767476677600,10.99461005,132.66,132.61,16.55073128]
[1767476679224,10.99461005,132.66,132.61,24.09162595]
[1767476679584,10.99461005,132.66,132.62,0.66727819]
[1767476682285,10.32903207,132.66,132.62,0.66727819]
[1767476682490,7.53830079,132.66,132.63,0.66727819]
[1767476682810,7.53830079,132.66,132.64,0.66727819]
[1767476701331,8.2006008,132.66,132.64,0.66727819]
[1767476701506,9.98833113,132.66,132.64,0.66727819]
[1767476703019,9.98833113,132.66,132.62,0.71996585]
[1767476703220,7.85249244,132.66,132.63,0.71996585]
[1767476703515,7.53830079,132.66,132.63,0.71996585]
[1767476703718,7.85249244,132.66,132.63,0.71996585]
[1767476705339,9.64022277,132.66,132.63,0.71996585]
[1767476707624,7.85249244,132.66,132.63,0.71996585]
[1767476708320,2.10563659,132.64,132.61,0.71996585]
[1767476708625,0.32154696,132.62,132.59,7.54168233]
[1767476708831,1.78773033,132.64,132.6,0.71996585]
[1767476709012,9.3273687,132.64,132.6,0.71996585]
[1767476709251,10.0167737,132.64,132.6,0.71996585]
[1767476709712,0.31419165,132.63,132.6,0.71996585]
[1767476710929,2.10192198,132.63,132.6,0.71996585]
[1767476711331,0.31419165,132.63,132.6,0.71996585]
[1767476712731,7.85409794,132.63,132.6,0.71996585]
[1767476714223,0.68565287,132.62,132.59,9.32941266]
[1767476716128,0.68565287,132.62,132.59,7.54168233]
[1767476718730,9.32763662,132.63,132.6,0.71996585]
[1767476718928,10.01704162,132.63,132.6,0.71996585]
[1767476719727,7.53990629,132.63,132.6,0.71996585]
[1767476720036,1.78773033,132.62,132.6,0.71996585]
[1767476720224,2.4733832,132.62,132.58,0.71996585]
[1767476720425,1.78773033,132.6,132.58,0.71996585]
[1767476720627,7.53990629,132.63,132.58,0.71996585]
[1767476720936,2.47713533,132.61,132.58,0.71996585]
[1767476721135,0.689405,132.62,132.58,0.71996585]
[1767476721311,2.47713533,132.62,132.58,0.71996585]
[1767476721512,0.31419165,132.61,132.58,0.71996585]
[1767476721712,0.31419165,132.61,132.57,29.46075159]
[1767476722929,0.31419165,132.61,132.58,0.71996585]
[1767476723316,9.32817864,132.62,132.58,0.71996585]
[1767476723537,10.01758364,132.62,132.58,0.71996585]
[1767476725238,1.78773033,132.61,132.58,0.71996585]
[1767476725447,0.68565287,132.6,132.57,30.18071744]
[1767476725623,0.65565288,132.6,132.57,30.18071744]
[1767476726544,1.78773033,132.61,132.58,0.71996585]
[1767476727542,0.689405,132.59,132.57,29.46075159]
[1767476727841,2.47713533,132.6,132.57,30.18071744]
[1767476728244,1.78773033,132.6,132.58,0.71996585]
[1767476728641,8.22985331,132.62,132.58,0.71996585]
[1767476728935,1.78773033,132.61,132.58,0.71996585]
[1767476729524,2.07222199,132.61,132.58,0.71996585]
[1767476730139,1.78773033,132.61,132.58,0.71996585]
[1767476730332,2.43900257,132.6,132.57,22.60827383]